fUST/lending_fUST_20250227
["ID","MTS","AMOUNT","RATE_DAILY","PERIOD"]
[354733284,1740651049767,-515.69,0.00049863,120]
[354733285,1740651049776,-325.3,0.00049863,120]
[354733286,1740651049785,-831.59,0.00049863,120]
[354733287,1740651049795,-500.0,0.00049863,120]
[354733288,1740651049805,-500.0,0.00049863,120]
[354733289,1740651049824,-500.0,0.00049863,120]
[354733290,1740651049834,-500.0,0.00049863,120]
[354733291,1740651049843,-500.0,0.00049863,120]
[354733292,1740651049852,-500.0,0.00049863,120]
[354733293,1740651049863,-297.94335424,0.00049863,120]
[354733294,1740651049872,-500.0,0.00049863,120]
[354733295,1740651049881,-1064.87,0.00049863,120]
[354733296,1740651049891,-681.47,0.00049863,120]
[354733297,1740651049900,-174.82,0.00049863,120]
[354733298,1740651049909,-500.0,0.00049863,120]
[354733299,1740651049920,-606.25,0.00049863,120]
[354733300,1740651049931,-500.0,0.00049863,120]
[354733301,1740651049940,-500.0,0.00049863,120]
[354733302,1740651049949,-500.0,0.00049863,120]
[354733303,1740651049958,-500.0,0.00049863,120]
[354733304,1740651049968,-500.0,0.00049863,120]
[354733305,1740651049978,-500.0,0.00049863,120]
[354733306,1740651049987,-233.8387792,0.00049863,120]
[354733307,1740651049996,-500.0,0.00049863,120]
[354733308,1740651050005,-500.0,0.00049863,120]
[354733309,1740651050015,-4103.51,0.00049863,6]
[354733310,1740651050025,-500.0,0.00049863,120]
[354733311,1740651050033,-500.0,0.00049863,120]
[354733312,1740651050043,-500.0,0.00049863,120]
[354733313,1740651050052,-476.81,0.00049863,120]
[354733314,1740651050061,-4987.29,0.00049863,120]
[354733315,1740651050070,-500.0,0.00049863,120]
[354733316,1740651050079,-330.6353359,0.00049863,120]
[354733317,1740651050088,-500.0,0.00049863,120]
[354733318,1740651050097,-1371.92,0.00049863,120]
[354733319,1740651050106,-500.0,0.00049863,120]
[354733320,1740651050115,-500.0,0.00049863,120]
[354733321,1740651050124,-500.0,0.00049863,120]
[354733322,1740651050133,-500.0,0.00049863,120]
[354733323,1740651050142,-4348.34,0.00049863,120]
[354733324,1740651050151,-500.0,0.00049863,120]
[354733325,1740651050161,-500.0,0.00049863,120]
[354733326,1740651050169,-500.0,0.00049863,120]
[354733327,1740651050178,-521.92,0.00049863,120]
[354733328,1740651050188,-923.92,0.00049863,120]
[354733329,1740651050197,-500.0,0.00049863,120]
[354733330,1740651050206,-500.0,0.00049863,120]
[354733331,1740651050216,-500.0,0.00049863,120]
[354733332,1740651050225,-500.0,0.00049863,120]
[354733333,1740651050234,-4781.11,0.00049863,120]
[354733334,1740651050244,-1228.38,0.00049863,120]
[354733335,1740651050253,-500.0,0.00049863,120]
[354733336,1740651050262,-586.2143655,0.00049863,120]
[354733337,1740651050272,-500.0,0.00049863,2]
[354733338,1740651050281,-500.0,0.00049863,120]
[354733339,1740651050290,-500.0,0.00049863,120]
[354733340,1740651050299,-500.0,0.00049863,120]
[354733341,1740651050308,-500.0,0.00049863,120]
[354733342,1740651050317,-500.0,0.00049863,2]
[354733343,1740651050326,-30045.31,0.00049863,7]
[354733344,1740651050335,-524.2,0.00049863,120]
[354733345,1740651050345,-2438.9,0.00049863,120]
[354733346,1740651050355,-500.0,0.00049863,120]
[354733347,1740651050370,-500.0,0.00049863,120]
[354733348,1740651050387,-714.35,0.00049863,120]
[354733349,1740651050397,-500.0,0.00049863,120]
[354733350,1740651050406,-500.0,0.00049863,120]
[354733351,1740651050415,-3190.54234595,0.0005,30]
[354733352,1740651050428,-500.0,0.00050136,120]
[354733353,1740651050439,-500.0,0.00050136,120]
[354733354,1740651050448,-500.0,0.00050136,120]
[354733355,1740651050459,-500.0,0.00050136,120]
[354733356,1740651050470,-500.0,0.00050136,120]
[354733357,1740651050479,-500.0,0.00050136,120]
[354733358,1740651050488,-489.85,0.00050136,120]
[354733359,1740651050497,-500.0,0.00050136,120]
[354733360,1740651050506,-500.0,0.00050136,120]
[354733361,1740651050515,-500.0,0.00050136,120]
[354733362,1740651050524,-500.0,0.00050136,120]
[354733363,1740651050534,-500.0,0.00050136,120]
[354733364,1740651050542,-500.0,0.00050136,120]
[354733365,1740651050551,-339.78592422,0.00050136,120]
[354733366,1740651050561,-500.0,0.00050136,120]
[354733367,1740651050570,-500.0,0.00050136,120]
[354733368,1740651050579,-500.0,0.00050136,120]
[354733369,1740651050589,-500.0,0.00050136,120]
[354733370,1740651050599,-500.0,0.00050136,120]
[354733371,1740651050608,-500.0,0.00050136,120]
[354733372,1740651050617,-592.68,0.00050136,120]
[354733373,1740651050626,-369.74,0.00050136,120]
[354733374,1740651050635,-500.0,0.00050136,120]
[354733375,1740651050644,-532.95,0.00050136,120]
[354733376,1740651050654,-500.0,0.00050136,120]
[354733377,1740651050663,-691.85,0.00050136,120]
[354733378,1740651050672,-500.0,0.00050136,120]
[354733379,1740651050682,-311.32,0.00050136,120]
[354733380,1740651050691,-1400.1,0.00050136,120]
[354733381,1740651050701,-500.0,0.00050136,120]
[354733382,1740651050710,-500.0,0.00050136,120]
[354733383,1740651050719,-500.0,0.00050136,120]
[354733384,1740651050728,-515.69,0.00050136,120]
[354733385,1740651050737,-831.59,0.00050136,120]
[354733386,1740651050746,-281.73,0.00050136,120]
[354733387,1740651050755,-500.0,0.00050136,120]
[354733388,1740651050764,-500.0,0.00050136,120]
[354733389,1740651050773,-500.0,0.00050136,120]
[354733390,1740651050782,-500.0,0.00050136,120]
[354733391,1740651050791,-500.0,0.00050136,120]
[354733392,1740651050800,-1064.87,0.00050136,120]
[354733393,1740651050809,-681.47,0.00050136,120]
[354733394,1740651050819,-500.0,0.00050136,120]
[354733395,1740651050835,-158.16,0.00050136,120]
[354733396,1740651050844,-500.0,0.00050136,120]
[354733397,1740651050854,-500.0,0.00050136,120]
[354733398,1740651050864,-636.95,0.00050136,120]
[354733399,1740651050873,-500.0,0.00050136,120]
[354733400,1740651050884,-500.0,0.00050136,120]
[354733401,1740651050895,-4103.51,0.00050136,6]
[354733402,1740651050904,-500.0,0.00050136,120]
[354733403,1740651050914,-362.58,0.00050136,120]
[354733404,1740651050923,-4987.29,0.00050136,120]
[354733405,1740651050932,-500.0,0.00050136,120]
[354733406,1740651050941,-500.0,0.00050136,120]
[354733407,1740651050950,-1371.92,0.00050136,120]
[354733408,1740651050960,-500.0,0.00050136,120]
[354733409,1740651050970,-500.0,0.00050136,120]
[354733410,1740651050979,-500.0,0.00050136,120]
[354733411,1740651050988,-4348.34,0.00050136,120]
[354733412,1740651050997,-500.0,0.00050136,120]
[354733413,1740651051007,-624.33883304,0.00050136,120]
[354733414,1740651051017,-500.0,0.00050136,120]
[354733415,1740651051026,-521.92,0.00050136,120]
[354733416,1740651051035,-923.92,0.00050136,120]
[354733417,1740651051044,-248.3,0.00050136,120]
[354733418,1740651051053,-500.0,0.00050136,120]
[354733419,1740651051062,-500.0,0.00050136,120]
[354733420,1740651051072,-4781.11,0.00050136,120]
[354733421,1740651051081,-1228.38,0.00050136,120]
[354733422,1740651051090,-500.0,0.00050136,120]
[354733423,1740651051099,-500.0,0.00050136,2]
[354733424,1740651051109,-368.6,0.00050136,120]
[354733425,1740651051118,-500.0,0.00050136,120]
[354733426,1740651051127,-500.0,0.00050136,120]
[354733427,1740651051136,-500.0,0.00050136,120]
[354733428,1740651051145,-500.0,0.00050136,2]
[354733429,1740651051155,-30045.31,0.00050136,7]
[354733430,1740651051164,-2438.9,0.00050136,120]
[354733431,1740651051173,-500.0,0.00050136,120]
[354733432,1740651051185,-714.35,0.00050136,120]
[354733433,1740651051194,-500.0,0.00050136,120]
[354733434,1740651051203,-500.0,0.00050136,120]
[354733435,1740651051215,-500.0,0.0005041,120]
[354733436,1740651051224,-500.0,0.0005041,120]
[354733437,1740651051233,-500.0,0.0005041,120]
[354733438,1740651051242,-586.4,0.0005041,120]
[354733439,1740651051251,-271.09810074,0.0005041,120]
[354733440,1740651051260,-500.0,0.0005041,120]
[354733441,1740651051269,-500.0,0.0005041,120]
[354733442,1740651051279,-371.21,0.0005041,120]
[354733443,1740651051288,-500.0,0.0005041,120]
[354733444,1740651051298,-500.0,0.0005041,120]
[354733445,1740651051308,-500.0,0.0005041,120]
[354733446,1740651051317,-500.0,0.0005041,120]
[354733447,1740651051327,-500.0,0.0005041,120]
[354733448,1740651051339,-500.0,0.0005041,120]
[354733449,1740651051348,-500.0,0.0005041,120]
[354733450,1740651051357,-500.0,0.0005041,120]
[354733451,1740651051367,-500.0,0.0005041,120]
[354733452,1740651051378,-691.85,0.0005041,120]
[354733453,1740651051387,-500.0,0.0005041,120]
[354733454,1740651051396,-1400.1,0.0005041,120]
[354733455,1740651051406,-500.0,0.0005041,120]
[354733456,1740651051415,-500.0,0.0005041,120]
[354733457,1740651051424,-500.0,0.0005041,120]
[354733458,1740651051434,-515.69,0.0005041,120]
[354733459,1740651051443,-831.59,0.0005041,120]
[354733460,1740651051453,-500.0,0.0005041,120]
[354733461,1740651051463,-500.0,0.0005041,120]
[354733462,1740651051472,-500.0,0.0005041,120]
[354733463,1740651051481,-500.0,0.0005041,120]
[354733464,1740651051491,-500.0,0.0005041,120]
[354733465,1740651051500,-1064.87,0.0005041,120]
[354733466,1740651051509,-681.47,0.0005041,120]
[354733467,1740651051519,-500.0,0.0005041,120]
[354733468,1740651051528,-500.0,0.0005041,120]
[354733469,1740651051538,-500.0,0.0005041,120]
[354733470,1740651051548,-500.0,0.0005041,120]
[354733471,1740651051557,-500.0,0.0005041,120]
[354733472,1740651051567,-4103.51,0.0005041,6]
[354733473,1740651051576,-500.0,0.0005041,120]
[354733474,1740651051586,-4987.29,0.0005041,120]
[354733475,1740651051596,-500.0,0.0005041,120]
[354733476,1740651051605,-500.0,0.0005041,120]
[354733477,1740651051615,-1371.92,0.0005041,120]
[354733478,1740651051624,-500.0,0.0005041,120]
[354733479,1740651051633,-500.0,0.0005041,120]
[354733480,1740651051643,-4348.34,0.0005041,120]
[354733481,1740651051652,-500.0,0.0005041,120]
[354733482,1740651051662,-500.0,0.0005041,120]
[354733483,1740651051672,-521.92,0.0005041,120]
[354733484,1740651051681,-923.92,0.0005041,120]
[354733485,1740651051691,-616.93,0.0005041,120]
[354733486,1740651051811,-500.0,0.0005041,120]
[354733487,1740651051820,-4781.11,0.0005041,120]
[354733488,1740651051830,-1228.38,0.0005041,120]
[354733489,1740651051839,-500.0,0.0005041,120]
[354733490,1740651051848,-500.0,0.0005041,2]
[354733491,1740651051857,-500.0,0.0005041,120]
[354733492,1740651051867,-500.0,0.0005041,120]
[354733493,1740651051876,-500.0,0.0005041,120]
[354733494,1740651051886,-500.0,0.0005041,2]
[354733495,1740651051895,-30045.31,0.0005041,7]
[354733496,1740651051904,-2438.9,0.0005041,120]
[354733497,1740651051914,-500.0,0.0005041,120]
[354733498,1740651051923,-714.35,0.0005041,120]
[354733499,1740651051934,-500.0,0.0005041,120]
[354733500,1740651051943,-500.0,0.0005041,120]
[354733501,1740651051952,-500.0,0.00050684,120]
[354733502,1740651051962,-500.0,0.00050684,120]
[354733503,1740651051971,-500.0,0.00050684,120]
[354733504,1740651051980,-500.0,0.00050684,120]
[354733505,1740651051990,-500.0,0.00050684,120]
[354733506,1740651052001,-228.69,0.00050684,120]
[354733507,1740651052010,-500.0,0.00050684,120]
[354733508,1740651052020,-500.0,0.00050684,120]
[354733509,1740651052030,-507.43,0.00050684,120]
[354733510,1740651052040,-500.0,0.00050684,120]
[354733511,1740651052051,-479.51,0.00050684,120]
[354733512,1740651052060,-500.0,0.00050684,120]
[354733513,1740651052069,-500.0,0.00050684,120]
[354733514,1740651052078,-500.0,0.00050684,120]
[354733515,1740651052088,-691.85,0.00050684,120]
[354733516,1740651052097,-500.0,0.00050684,120]
[354733517,1740651052106,-1400.1,0.00050684,120]
[354733518,1740651052115,-500.0,0.00050684,120]
[354733519,1740651052124,-500.0,0.00050684,120]
[354733520,1740651052134,-500.0,0.00050684,120]
[354733521,1740651052143,-515.69,0.00050684,120]
[354733522,1740651052152,-831.59,0.00050684,120]
[354733523,1740651052161,-500.0,0.00050684,120]
[354733524,1740651052170,-500.0,0.00050684,120]
[354733525,1740651052179,-500.0,0.00050684,120]
[354733526,1740651052188,-500.0,0.00050684,120]
[354733527,1740651052199,-500.0,0.00050684,120]
[354733528,1740651052209,-1064.87,0.00050684,120]
[354733529,1740651052218,-681.47,0.00050684,120]
[354733530,1740651052227,-500.0,0.00050684,120]
[354733531,1740651052237,-500.0,0.00050684,120]
[354733532,1740651052247,-199.53,0.00050684,120]
[354733533,1740651052256,-500.0,0.00050684,120]
[354733534,1740651052266,-500.0,0.00050684,120]
[354733535,1740651052275,-4103.51,0.00050684,6]
[354733536,1740651052285,-500.0,0.00050684,120]
[354733537,1740651052294,-4987.29,0.00050684,120]
[354733538,1740651052303,-500.0,0.00050684,120]
[354733539,1740651052313,-500.0,0.00050684,120]
[354733540,1740651052322,-1371.92,0.00050684,120]
[354733541,1740651052331,-500.0,0.00050684,120]
[354733542,1740651052340,-500.0,0.00050684,120]
[354733543,1740651052349,-4348.34,0.00050684,120]
[354733544,1740651052358,-500.0,0.00050684,120]
[354733545,1740651052368,-500.0,0.00050684,120]
[354733546,1740651052382,-521.92,0.00050684,120]
[354733547,1740651052392,-923.92,0.00050684,120]
[354733548,1740651052402,-500.0,0.00050684,120]
[354733549,1740651052412,-4781.11,0.00050684,120]
[354733550,1740651052422,-1228.38,0.00050684,120]
[354733551,1740651052431,-500.0,0.00050684,120]
[354733552,1740651052440,-500.0,0.00050684,2]
[354733553,1740651052449,-500.0,0.00050684,120]
[354733554,1740651052459,-500.0,0.00050684,120]
[354733555,1740651052469,-500.0,0.00050684,120]
[354733556,1740651052479,-500.0,0.00050684,2]
[354733557,1740651052488,-30045.31,0.00050684,7]
[354733558,1740651052498,-2438.9,0.00050684,120]
[354733559,1740651052508,-500.0,0.00050684,120]
[354733560,1740651052519,-714.35,0.00050684,120]
[354733561,1740651052528,-500.0,0.00050684,120]
[354733562,1740651052537,-500.0,0.00050958,120]
[354733563,1740651052547,-500.0,0.00050958,120]
[354733564,1740651052556,-500.0,0.00050958,120]
[354733565,1740651052564,-500.0,0.00050958,120]
[354733566,1740651052574,-158.09,0.00050958,120]
[354733567,1740651052583,-500.0,0.00050958,120]
[354733568,1740651052592,-500.0,0.00050958,120]
[354733569,1740651052603,-500.0,0.00050958,120]
[354733570,1740651052612,-500.0,0.00050958,120]
[354733571,1740651052622,-500.0,0.00050958,120]
[354733572,1740651052631,-179.58000065,0.00050958,120]
[354733573,1740651052641,-691.85,0.00050958,120]
[354733574,1740651052652,-500.0,0.00050958,120]
[354733575,1740651052662,-1400.1,0.00050958,120]
[354733576,1740651052672,-333.79,0.00050958,120]
[354733577,1740651052681,-500.0,0.00050958,120]
[354733578,1740651052690,-515.69,0.00050958,120]
[354733579,1740651052700,-831.59,0.00050958,120]
[354733580,1740651052709,-500.0,0.00050958,120]
[354733581,1740651052718,-500.0,0.00050958,120]
[354733582,1740651052727,-500.0,0.00050958,120]
[354733583,1740651052736,-1064.87,0.00050958,120]
[354733584,1740651052745,-681.47,0.00050958,120]
[354733585,1740651052755,-500.0,0.00050958,120]
[354733586,1740651052766,-500.0,0.00050958,120]
[354733587,1740651052775,-518.47,0.00050958,120]
[354733588,1740651052785,-500.0,0.00050958,120]
[354733589,1740651052795,-4103.51,0.00050958,6]
[354733590,1740651052805,-500.0,0.00050958,120]
[354733591,1740651052815,-4987.29,0.00050958,120]
[354733592,1740651052825,-500.0,0.00050958,120]
[354733593,1740651052836,-500.0,0.00050958,120]
[354733594,1740651052846,-1371.92,0.00050958,120]
[354733595,1740651052855,-500.0,0.00050958,120]
[354733596,1740651052865,-500.0,0.00050958,120]
[354733597,1740651052874,-4348.34,0.00050958,120]
[354733598,1740651052884,-500.0,0.00050958,120]
[354733599,1740651052893,-500.0,0.00050958,120]
[354733600,1740651052903,-521.92,0.00050958,120]
[354733601,1740651052912,-923.92,0.00050958,120]
[354733602,1740651052922,-500.0,0.00050958,120]
[354733603,1740651052931,-4781.11,0.00050958,120]
[354733604,1740651052940,-1228.38,0.00050958,120]
[354733605,1740651052949,-500.0,0.00050958,120]
[354733606,1740651052958,-500.0,0.00050958,120]
[354733607,1740651052968,-500.0,0.00050958,120]
[354733608,1740651052977,-500.0,0.00050958,120]
[354733609,1740651052987,-500.0,0.00050958,2]
[354733610,1740651052997,-30045.31,0.00050958,7]
[354733611,1740651053006,-2438.9,0.00050958,120]
[354733612,1740651053015,-500.0,0.00050958,120]
[354733613,1740651053024,-714.35,0.00050958,120]
[354733614,1740651053033,-500.0,0.00050958,120]
[354733615,1740651053042,-169.0,0.00051,120]
[354733616,1740651053051,-500.0,0.00051232,120]
[354733617,1740651053060,-500.0,0.00051232,120]
[354733618,1740651053070,-500.0,0.00051232,120]
[354733619,1740651053079,-500.0,0.00051232,120]
[354733620,1740651053088,-500.0,0.00051232,120]
[354733621,1740651053097,-500.0,0.00051232,120]
[354733622,1740651053106,-500.0,0.00051232,120]
[354733623,1740651053116,-500.0,0.00051232,120]
[354733624,1740651053125,-500.0,0.00051232,120]
[354733625,1740651053134,-691.85,0.00051232,120]
[354733626,1740651053143,-500.0,0.00051232,120]
[354733627,1740651053152,-1400.1,0.00051232,120]
[354733628,1740651053161,-500.0,0.00051232,120]
[354733629,1740651053170,-515.69,0.00051232,120]
[354733630,1740651053179,-831.59,0.00051232,120]
[354733631,1740651053189,-500.0,0.00051232,120]
[354733632,1740651053199,-500.0,0.00051232,120]
[354733633,1740651053208,-1064.87,0.00051232,120]
[354733634,1740651053217,-681.47,0.00051232,120]
[354733635,1740651053227,-500.0,0.00051232,120]
[354733636,1740651053240,-500.0,0.00051232,120]
[354733637,1740651053252,-636.35,0.00051232,120]
[354733638,1740651053265,-4103.51,0.00051232,6]
[354733639,1740651053277,-500.0,0.00051232,120]
[354733640,1740651053290,-4987.29,0.00051232,120]
[354733641,1740651053300,-500.0,0.00051232,120]
[354733642,1740651053310,-1371.92,0.00051232,120]
[354733643,1740651053322,-500.0,0.00051232,120]
[354733644,1740651053333,-500.0,0.00051232,120]
[354733645,1740651053345,-500.0,0.00051232,120]
[354733646,1740651053356,-4348.34,0.00051232,120]
[354733647,1740651053368,-500.0,0.00051232,120]
[354733648,1740651053383,-359.77,0.00051232,120]
[354733649,1740651053395,-521.92,0.00051232,120]
[354733650,1740651053407,-923.92,0.00051232,120]
[354733651,1740651053419,-500.0,0.00051232,120]
[354733652,1740651053431,-4781.11,0.00051232,120]
[354733653,1740651053443,-1228.38,0.00051232,120]
[354733654,1740651053455,-500.0,0.00051232,120]
[354733655,1740651053467,-633.91,0.00051232,120]
[354733656,1740651053478,-500.0,0.00051232,120]
[354733657,1740651053488,-500.0,0.00051232,120]
[354733658,1740651053500,-500.0,0.00051232,2]
[354733659,1740651053511,-29358.23606712,0.00051232,7]
[354733660,1740651053675,-500.0,0.00050684,120]
[354733661,1740651053686,-687.07393288,0.00051232,7]
[354733662,1740651053697,-2438.9,0.00051232,120]
[354733663,1740651053709,-500.0,0.00051232,120]
[354733664,1740651053723,-714.35,0.00051232,120]
[354733665,1740651053734,-500.0,0.00051232,120]
[354733666,1740651053747,-1086.3655505,0.000513,120]
[354733680,1740652111085,656.95,0.00021,2]
[354733741,1740652241235,1493.61,0.000265,30]
[354733742,1740652241260,10993.05,0.000265,30]
[354733743,1740652241280,1493.61,0.000265,30]
[354733766,1740652243633,-11609.70173445,0.000265,30]
[354733767,1740652243642,-1600.66606537,0.00035,120]
[354733768,1740652243651,-476.73431337,0.000419,120]
[354733769,1740652243661,-270.11199079,0.00041921,120]
[354733770,1740652243670,-550.0,0.00042021,5]
[354733771,1740652243679,-6400.358661,0.00042022,120]
[354733772,1740652243689,-12357.6001426,0.00043072,2]
[354733773,1740652243698,-3100.0,0.00043836,10]
[354733774,1740652243707,-203.08856307,0.000439,9]
[354733775,1740652243716,-470.0,0.00044728,5]
[354733776,1740652243726,-151.0,0.00045,120]
[354733777,1740652243736,-1263.03309674,0.000455,60]
[354733778,1740652243748,-468.02700874,0.00045582,15]
[354733780,1740652243757,-3276.55138991,0.00046575,10]
[354733782,1740652243767,-172.0,0.00047,90]
[354733784,1740652243776,-465.15135044,0.00047861,15]
[354733786,1740652243787,-8989.78588258,0.00048398,120]
[354733788,1740652243796,-35012.19448967,0.00048598,120]
[354733790,1740652243808,-16605.2781936,0.00048598,120]
[354733791,1740652243820,-7111.51534356,0.00048598,120]
[354733798,1740652246832,-1054.9302687,0.00048598,120]
[354733799,1740652246844,-25463.08170447,0.00048598,120]
[354733800,1740652246853,-150.0,0.00049034,14]
[354733801,1740652246862,-150.0,0.00049034,14]
[354733802,1740652246871,-164.96837701,0.00049215,2]
[354733803,1740652246881,-8844.73,0.00049314,120]
[354733804,1740652246890,-500.0,0.00049315,120]
[354733805,1740652246899,-500.0,0.00049315,120]
[354733806,1740652246909,-500.0,0.00049315,120]
[354733807,1740652246918,-500.0,0.00049315,120]
[354733808,1740652246927,-500.0,0.00049315,120]
[354733809,1740652246937,-261.8523496,0.00049315,7]
[354733810,1740652246947,-1000.0,0.00049315,120]
[354733811,1740652246956,-500.0,0.00049315,120]
[354733812,1740652246968,-500.0,0.00049315,120]
[354733813,1740652246977,-500.0,0.00049315,120]
[354733814,1740652246989,-500.0,0.00049315,120]
[354733815,1740652246999,-500.0,0.00049315,120]
[354733816,1740652247008,-500.0,0.00049315,120]
[354733817,1740652247018,-500.0,0.00049315,120]
[354733818,1740652247027,-500.0,0.00049315,120]
[354733819,1740652247036,-500.0,0.00049315,120]
[354733820,1740652247046,-500.0,0.00049315,120]
[354733821,1740652247055,-500.0,0.00049315,120]
[354733822,1740652247065,-500.0,0.00049315,120]
[354733823,1740652247075,-500.0,0.00049315,120]
[354733824,1740652247084,-500.0,0.00049315,120]
[354733825,1740652247093,-500.0,0.00049315,120]
[354733826,1740652247103,-500.0,0.00049315,120]
[354733827,1740652247112,-500.0,0.00049315,120]
[354733828,1740652247121,-500.0,0.00049315,120]
[354733829,1740652247131,-500.0,0.00049315,120]
[354733830,1740652247140,-500.0,0.00049315,120]
[354733831,1740652247150,-500.0,0.00049315,120]
[354733832,1740652247159,-500.0,0.00049315,120]
[354733833,1740652247169,-500.0,0.00049315,120]
[354733834,1740652247178,-500.0,0.00049315,120]
[354733835,1740652247187,-500.0,0.00049315,120]
[354733836,1740652247196,-500.0,0.00049315,120]
[354733837,1740652247206,-411.47177006,0.00049315,120]
[354733838,1740652247215,-500.0,0.00049315,120]
[354733839,1740652247224,-506.46724938,0.00049315,120]
[354733840,1740652247234,-500.0,0.00049315,120]
[354733841,1740652247245,-500.0,0.00049315,120]
[354733842,1740652247255,-500.0,0.00049315,120]
[354733843,1740652247264,-500.0,0.00049315,120]
[354733844,1740652247273,-501.66864795,0.00049315,120]
[354733845,1740652247283,-500.0,0.00049315,120]
[354733846,1740652247292,-500.0,0.00049315,120]
[354733847,1740652247301,-500.0,0.00049315,120]
[354733848,1740652247311,-500.0,0.00049315,120]
[354733849,1740652247321,-500.0,0.00049315,120]
[354733850,1740652247332,-594.28,0.00049315,120]
[354733851,1740652247343,-500.0,0.00049315,120]
[354733852,1740652247352,-500.0,0.00049315,120]
[354733853,1740652247361,-500.0,0.00049315,120]
[354733854,1740652247371,-500.0,0.00049315,120]
[354733855,1740652247380,-169.41305438,0.00049315,120]
[354733856,1740652247390,-500.0,0.00049315,120]
[354733857,1740652247399,-500.0,0.00049315,120]
[354733858,1740652247410,-500.0,0.00049315,120]
[354733859,1740652247419,-500.0,0.00049315,120]
[354733860,1740652247429,-500.0,0.00049315,120]
[354733861,1740652247439,-500.0,0.00049315,120]
[354733862,1740652247448,-500.0,0.00049315,120]
[354733863,1740652247457,-500.0,0.00049315,120]
[354733864,1740652247467,-500.0,0.00049315,120]
[354733865,1740652247475,-500.0,0.00049315,120]
[354733866,1740652247487,-500.0,0.00049315,120]
[354733867,1740652247496,-500.0,0.00049315,120]
[354733868,1740652247505,-426.50001374,0.00049315,120]
[354733882,1740653210111,-203.87172627,0.000489,11]
[354733883,1740653210133,-216.08959264,0.000489,120]
[354733884,1740653210156,-71.88877754,0.00049,120]
[354734153,1740653439995,-78.11122246,0.00049,120]
[354734155,1740653440005,-827.33117491,0.00049,2]
[354734161,1740653440048,-29628.785952,0.00049,2]
[354734578,1740653444009,-129579.06138065,0.00049,2]
[354734580,1740653444019,-500.0,0.00049,120]
[354734582,1740653444028,-500.0,0.00049,120]
[354734583,1740653444038,-500.0,0.00049,120]
[354734584,1740653444048,-500.0,0.00049,120]
[354734585,1740653444060,-500.0,0.00049,120]
[354734586,1740653444071,-500.0,0.00049,120]
[354734588,1740653444081,-500.0,0.00049,120]
[354734590,1740653444091,-271.24169341,0.00049099,120]
[354734591,1740653444101,-4655.97475239,0.00049199,5]
[354734592,1740653444112,-28864.85524737,0.00049199,33]
[354734593,1740653444122,-42502.95173822,0.000492,40]
[354734594,1740653444131,-198207.4772576,0.000493,120]
[354734595,1740653444143,-1342.43992946,0.000493,120]
[354734628,1740653446038,-300450.08281294,0.000493,120]
[354734630,1740653446047,-165.16,0.000493,30]